bitfinex/quotes_ETHUSD_20250814
["timestamp","ask_amount","ask_price","bid_price","bid_amount"]
[1755147859461,1.99782586,4760.4,4760.3,8.237]
[1755147860221,1.99782586,4760.4,4760.3,8.238]
[1755147862172,0.59158927,4760.4,4760.3,8.238]
[1755147862336,0.11128927,4760.4,4760.3,8.238]
[1755147863626,0.00648927,4760.4,4760.3,8.238]
[1755147863826,0.00648927,4760.4,4760.3,8.667]
[1755147864666,0.00214175,4760.4,4760.3,9.1571]
[1755147865229,0.00214175,4760.4,4760.3,9.2619]
[1755147869085,0.00214175,4760.4,4760.3,8.235]
[1755147871648,0.00214175,4760.4,4760.3,8.664]
[1755147871845,0.00214175,4760.4,4760.3,8.7688]
[1755147872643,0.00083233,4760.4,4760.3,8.7688]
[1755147872841,0.00083233,4760.4,4760.3,9.2589]
[1755147873243,0.00083233,4760.4,4760.3,8.3408]
[1755147874785,0.00083233,4760.4,4760.3,8.3418]
[1755147875085,0.00283233,4760.4,4760.3,8.3418]
[1755147878076,0.00283233,4760.4,4760.3,8.7708]
[1755147878283,0.00283233,4760.4,4760.3,9.2609]
[1755147878445,0.00283233,4760.4,4760.3,8.3418]
[1755147878776,0.00283233,4760.4,4760.3,8.7708]
[1755147878979,0.00283233,4760.4,4760.3,5.1398]
[1755147879378,0.00283233,4760.4,4760.3,8.3398]
[1755147880457,0.48313233,4760.4,4760.3,8.3398]
[1755147880662,0.20791061,4760.4,4760.3,8.235]
[1755147880977,0.629242,4760.5,4760.3,8.235]
[1755147881181,1.059342,4760.5,4760.3,8.235]
[1755147881976,1.059342,4760.5,4760.3,5.035]
[1755147881977,13.16493458,4760.4,4760.3,5.035]
[1755147882148,13.16493458,4760.4,4760.3,8.235]
[1755147882354,0.629242,4760.5,4760.3,8.235]
[1755147882555,0.629242,4760.5,4760.4,3.2]
[1755147883297,12.73483458,4761.3,4760.4,3.629]
[1755147883483,0.1048,4760.8,4760.4,3.629]
[1755147883649,0.629215,4760.6,4760.4,3.629]
[1755147883849,0.1048,4760.8,4760.4,3.629]
[1755147884168,0.629215,4760.7,4760.4,3.2]
[1755147884695,0.1048,4760.6,4760.4,3.2]
[1755147885952,0.629251,4760.5,4760.4,3.2]
[1755147887288,0.1048,4760.6,4760.4,3.2]
[1755147887655,0.734039,4760.6,4760.4,3.2]
[1755147888099,0.734039,4760.6,4760.4,3.629]
[1755147888272,0.002,4761.0,4760.5,0.429]
[1755147888469,0.1048,4760.9,4760.6,3.203]
[1755147889387,0.629211,4760.7,4760.6,3.203]
[1755147889590,0.002,4761.0,4760.6,4.1221]
[1755147889785,0.1048,4760.8,4760.6,3.203]
[1755147889992,0.1048,4760.8,4760.7,0.9191]
[1755147891652,0.002,4761.0,4760.7,0.9191]
[1755147891857,0.002,4761.0,4760.8,4.0906]
[1755147892092,0.002,4761.0,4760.9,0.9944]
[1755147898406,0.002,4761.0,4760.9,0.1048]
[1755147898609,0.002,4761.0,4760.9,0.5379]
[1755147900302,0.4862,4761.0,4760.9,3.199]
[1755147900523,0.7145,4761.0,4760.9,3.199]
[1755147900918,0.002,4761.0,4760.9,6.3038]
[1755147901079,0.002,4761.0,4760.9,7.1934]
[1755147901504,0.002,4761.0,4760.9,3.9917]
[1755147902226,0.002,4761.0,4760.9,4.30786373]
[1755147902537,0.002,4761.0,4760.9,4.30880357]
[1755147902696,0.002,4761.0,4760.9,10.1424901]
[1755147902887,0.002,4761.0,4760.9,10.14342994]
[1755147903093,0.002,4761.0,4760.9,7.50980357]
[1755147903292,0.002,4761.0,4760.9,10.14004614]
[1755147903635,0.002,4761.0,4760.9,10.2985932]
[1755147904090,7.812e-05,4761.0,4760.9,7.66835063]
[1755147904293,7.812e-05,4761.0,4760.9,8.03228461]
[1755147904992,7.812e-05,4761.0,4760.9,18.53981777]
[1755147905191,0.02,4761.4,4761.0,3.0]
[1755147905427,0.02,4761.4,4761.3,0.1048]
[1755147905600,0.02,4761.4,4761.3,6.62396373]
[1755147905791,0.02,4761.4,4761.3,7.51356373]
[1755147905994,0.02,4761.4,4761.3,7.73977331]
[1755147906195,0.02,4764.4,4761.4,24.431259]
[1755147906429,0.02,4764.4,4762.0,3.0]
[1755147906592,0.02,4764.4,4762.2,3.0]
[1755147906898,0.02,4764.4,4762.3,7.42555978]
[1755147907432,0.02,4764.4,4762.3,10.04613505]
[1755147907930,0.02,4764.4,4762.3,7.42555978]
[1755147908444,0.4544,4764.0,4762.3,6.50775904]
[1755147908596,0.4842,4763.8,4762.3,6.50775904]
[1755147908930,0.4544,4763.7,4762.3,7.0956]
[1755147909696,0.4744,4763.4,4762.3,3.4331]
[1755147910007,0.4842,4763.3,4762.3,6.206]
[1755147910324,0.4842,4763.3,4762.3,3.0]
[1755147910510,0.4842,4763.3,4762.3,6.97005978]
[1755147910693,0.4842,4763.3,4762.3,7.42655978]
[1755147911095,0.4842,4763.3,4762.3,6.97005978]
[1755147911290,0.4542,4763.3,4762.3,3.97005978]
[1755147911596,0.4542,4763.3,4762.4,0.33095978]
[1755147911793,0.4711,4763.2,4762.5,3.206]
[1755147912034,0.4711,4763.2,4761.3,2.61815904]
[1755147912035,0.4711,4763.2,4762.6,3.206]
[1755147912325,0.4711,4763.2,4762.7,3.206]
[1755147912492,0.4711,4763.2,4762.8,3.206]
[1755147912698,0.4711,4763.2,4762.9,3.206]
[1755147912898,0.4711,4763.2,4761.2,0.76405978]
[1755147913093,0.4711,4763.2,4761.3,3.206]
[1755147913297,0.4842,4763.1,4761.3,3.206]
[1755147913628,0.4711,4763.0,4761.3,3.53695978]
[1755147913797,0.4842,4762.9,4761.3,3.53695978]
[1755147914228,0.4711,4762.8,4761.3,3.53695978]
[1755147914523,0.4842,4762.7,4761.3,3.53695978]
[1755147914831,0.4842,4763.0,4761.4,4.22055978]
[1755147915000,0.4842,4763.0,4761.6,3.0]
[1755147915195,0.4842,4763.0,4761.8,3.0]
[1755147915442,0.9553,4763.3,4761.9,0.33095978]
[1755147915727,0.9553,4763.3,4761.9,0.76405978]
[1755147915943,0.02,4763.4,4761.9,0.76405978]
[1755147916104,0.02,4763.4,4762.0,0.8896]
[1755147916422,0.02,4763.4,4763.3,0.1048]
[1755147916607,0.9753,4763.4,4763.3,3.3118]
[1755147916805,0.9753,4763.4,4763.3,3.207]
[1755147917430,1.08331,4763.4,4763.3,3.207]
[1755147920138,1.18811,4763.4,4763.3,3.207]
[1755147920935,0.1248,4763.4,4763.3,3.207]
[1755147921230,0.02,4763.4,4763.3,3.3118]
[1755147923599,0.02,4763.4,4763.3,8.3418]
[1755147924104,0.02,4763.4,4763.3,8.7952]
[1755147924633,0.02,4763.4,4763.3,9.2467]
[1755147925204,0.02,4763.4,4763.3,12.4035168]
[1755147925910,0.02,4763.4,4763.3,12.50843568]
[1755147926097,0.02,4763.4,4763.3,8.84993568]
[1755147926301,0.02,4763.4,4763.3,11.9520168]
[1755147926519,0.02,4763.4,4763.3,11.4986168]
[1755147926932,0.02,4763.4,4763.3,11.3418]
[1755147927440,0.02,4763.4,4763.3,8.3428]
[1755147927731,0.02,4763.4,4763.3,5.1348]
[1755147927936,0.02,4763.4,4763.3,8.3418]
[1755147928525,0.02,4763.4,4763.3,5.1348]
[1755147928806,0.02,4763.4,4763.3,8.3418]
[1755147931434,0.9767,4763.4,4763.3,8.3418]
[1755147931949,0.02,4763.4,4763.3,8.3418]
[1755147934450,0.02,4763.4,4763.3,8.7952]
[1755147934647,0.02,4763.4,4763.3,9.2467]
[1755147935656,0.02,4763.4,4763.3,6.19579378]
[1755147935859,0.02,4763.4,4763.3,11.3398]
[1755147936221,0.02,4763.4,4763.3,12.2447]
[1755147936962,0.02,4763.4,4763.3,11.7932]
[1755147937344,0.02,4763.4,4763.3,12.2447]
[1755147937927,0.02,4763.4,4763.3,8.1348]
[1755147938559,0.02,4763.4,4763.3,11.3398]
[1755147939256,0.02,4763.4,4763.3,8.3408]
[1755147939857,0.9767,4763.4,4763.3,8.3408]
[1755147941177,0.9767,4763.4,4763.3,5.1348]
[1755147941178,0.02,4763.4,4763.3,5.1348]
[1755147941463,0.9767,4763.4,4763.3,5.1348]
[1755147941660,0.9767,4763.4,4763.3,8.3398]
[1755147941964,0.9767,4763.4,4763.3,8.235]
[1755147943058,0.01,4763.3,4763.1,0.1048]
[1755147943269,0.01,4763.3,4763.2,5.029]
[1755147944134,0.01,4763.3,4763.2,8.233]
[1755147948801,0.01,4763.3,4763.2,8.6864]
[1755147950797,0.91905731,4764.4,4763.2,9.1379]
[1755147950967,0.1048,4764.2,4763.2,9.2427]
[1755147951167,0.1048,4764.2,4763.5,0.1048]
[1755147951363,0.4676,4764.1,4763.6,3.201]
[1755147951668,0.4676,4764.0,4763.6,3.201]
[1755147951878,0.4676,4763.9,4763.6,3.201]
[1755147952572,0.4676,4763.8,4763.6,3.201]
[1755147952874,0.8982,4763.7,4763.5,0.1048]
[1755147953104,0.8982,4763.7,4763.6,3.2]
[1755147953396,12.70025973,4764.1,4763.5,0.1048]
[1755147953603,13.70325973,4763.7,4763.6,3.2]
[1755147954480,1.003,4763.7,4763.6,3.2]
[1755147955188,0.1048,4763.7,4763.6,3.2]
[1755147955583,0.1048,4763.7,4763.2,5.029]
[1755147955783,1.003,4763.7,4763.3,3.2]
[1755147956224,0.1048,4763.7,4763.3,3.2]
[1755147958813,1.67905819,4764.0,4763.3,3.2]
[1755147959015,0.1048,4763.7,4763.3,3.2]
[1755147959682,0.4306,4764.0,4763.3,3.2]
[1755147959878,0.1048,4763.9,4763.3,3.2]
[1755147960636,0.1048,4763.9,4763.3,3.6624]
[1755147960917,13.50681242,4764.4,4763.3,3.6624]
[1755147961782,12.70025973,4764.7,4763.4,0.4591]
[1755147962118,0.8982,4764.6,4763.4,0.9215]
[1755147962880,12.70025973,4764.7,4763.4,0.4591]
[1755147963112,12.70025973,4764.7,4763.5,0.4624]
[1755147963332,12.70025973,4764.7,4763.6,3.197]
[1755147963940,12.70025973,4765.1,4763.7,0.9215]
[1755147964123,12.70025973,4765.1,4763.8,0.4624]
[1755147964303,12.70025973,4765.1,4763.9,3.197]
[1755147964513,14.1748766,4765.1,4764.0,0.4624]
[1755147964817,14.1748766,4765.1,4764.0,0.9215]
[1755147966955,0.4676,4765.0,4764.0,0.9215]
[1755147968335,13.13085973,4765.1,4764.1,0.4624]
[1755147969072,12.70025973,4765.1,4764.1,0.4624]
[1755147969564,12.70025973,4765.1,4764.2,5.029]
[1755147969735,0.4876,4765.4,4764.3,0.4624]
[1755147969937,0.4876,4765.4,4764.4,3.194]
[1755147970895,0.29118515,4765.4,4764.4,3.194]
[1755147971483,12.70025973,4765.1,4764.4,3.194]
[1755147972476,12.70025973,4764.6,4764.4,0.1048]
[1755147972654,12.42527178,4764.6,4764.5,3.194]
[1755147972851,12.85587178,4764.6,4764.2,5.029]
[1755147973040,0.8982,4764.5,4764.3,3.195]
[1755147973242,1.34282718,4764.5,4764.3,3.195]
[1755147973455,0.8982,4764.4,4764.3,3.195]
[1755147973988,0.4306,4764.4,4764.3,3.195]
[1755147974342,0.4306,4764.4,4764.2,5.029]
[1755147974568,0.4306,4764.4,4764.3,3.194]
[1755147975875,12.42527178,4764.6,4764.3,3.194]
[1755147976373,0.1048,4764.7,4764.3,3.194]
[1755147977576,0.1048,4764.7,4764.4,0.9215]
[1755147977779,1.12772,4765.5,4764.5,0.1048]
[1755147977780,0.002,4765.1,4764.5,0.1048]
[1755147978150,0.002,4765.1,4764.6,0.4624]
[1755147978379,0.002,4765.1,4764.7,4.1145]
[1755147978549,0.002,4765.1,4764.8,0.4624]
[1755147979171,0.4306,4765.0,4764.7,3.193]
[1755147979484,0.1048,4764.9,4764.7,3.193]
[1755147980185,0.8982,4764.8,4764.7,3.193]
[1755147980386,0.8982,4764.8,4764.2,5.029]
[1755147980689,0.8982,4764.7,4764.3,3.195]
[1755147980910,12.80505973,4764.4,4764.3,3.195]
[1755147981058,13.70325973,4764.4,4764.3,3.195]
[1755147981263,15.1364672,4764.4,4764.3,3.195]
[1755147982084,3.0,4764.3,4763.4,5.029]
[1755147982267,12.80505973,4763.5,4763.4,5.029]
[1755147982463,13.71445973,4763.5,4763.4,5.029]
[1755147982676,15.0859057,4763.5,4763.4,5.029]
[1755147983001,15.7148357,4763.5,4763.4,5.029]
[1755147983302,15.7148357,4763.5,4763.4,8.229]
[1755147983865,3.0,4763.4,4762.5,5.029]
[1755147984174,12.70025973,4762.9,4762.5,5.029]
[1755147984400,1.0142,4762.8,4762.3,0.001]
[1755147984572,12.80505973,4762.4,4762.2,5.031]
[1755147984774,0.9094,4762.3,4762.2,5.031]
[1755147984973,12.70025973,4762.0,4761.4,5.03]
[1755147985174,12.70025973,4761.5,4761.4,5.03]
[1755147985379,12.80505973,4761.5,4761.4,5.03]
[1755147985687,13.71445973,4761.5,4761.4,8.232]
[1755147986197,13.71445973,4761.5,4761.4,5.03]
[1755147986368,13.71445973,4761.5,4761.4,8.232]
[1755147986562,15.7151367,4761.5,4761.4,8.232]
[1755147986763,30.57936475,4761.5,4761.4,8.232]
[1755147987187,29.66996475,4761.5,4761.4,8.232]
[1755147987391,30.57936475,4761.5,4761.4,8.232]
[1755147988388,33.12406475,4761.5,4761.4,5.03]
[1755147988588,33.57936475,4761.5,4761.4,8.231]
[1755147989570,48.07936475,4761.5,4761.4,8.231]
[1755147990595,47.62406475,4761.5,4761.4,8.231]
[1755147990795,47.16996475,4761.5,4761.4,8.231]
[1755147991299,32.66996475,4761.5,4761.4,8.231]
[1755147992990,32.56516475,4761.5,4761.4,8.231]
[1755147993671,33.47456475,4761.5,4761.4,5.03]
[1755147994067,32.56516475,4761.5,4761.4,8.231]
[1755147994780,31.19371878,4761.5,4761.4,8.231]
[1755147994971,28.19371878,4761.5,4761.4,9.1723]
[1755147995905,0.629231,4761.5,4761.4,9.1723]
[1755147996496,3.0,4762.1,4761.4,9.1723]
[1755147996685,0.629125,4761.6,4761.4,9.1723]
[1755147996889,0.629125,4761.6,4761.5,0.9413]
[1755147998309,27.56448778,4762.2,4761.5,0.9413]
[1755147998480,0.629102,4762.0,4761.6,3.202]
[1755147998681,0.629102,4762.0,4761.7,0.9413]
[1755147998906,0.629102,4762.0,4761.8,3.202]
[1755147999106,0.629102,4762.0,4761.9,0.9413]
[1755147999484,27.56448778,4762.2,4761.9,0.9413]
[1755147999685,27.56448778,4762.2,4762.0,3.202]
[1755147999898,27.56448778,4762.2,4762.1,3.202]
[1755148000693,27.56448778,4762.2,4762.1,3.675]
[1755148000894,27.56448778,4762.2,4762.1,4.1433]
[1755148002985,27.66928778,4762.2,4762.1,4.1433]
[1755148004918,27.66928778,4762.2,4761.6,0.4683]
[1755148005090,27.66928778,4762.2,4762.1,0.001]
[1755148005285,27.66928778,4762.2,4762.1,3.201]
[1755148006719,28.04699274,4762.2,4762.1,3.201]
[1755148007034,28.50109274,4762.2,4762.1,3.201]
[1755148007186,28.95639274,4762.2,4762.1,0.001]
[1755148007382,28.95639274,4762.2,4762.1,3.201]
[1755148007587,28.50109274,4762.2,4762.1,3.201]
[1755148007831,28.04699274,4762.2,4762.1,3.201]
[1755148010723,14.10900621,4762.2,4762.1,0.001]
[1755148011115,14.10900621,4762.2,4762.1,3.199]
[1755148011313,17.10900621,4762.2,4762.1,0.001]
[1755148011519,17.10900621,4762.2,4762.1,3.2]
[1755148011520,31.60900621,4762.2,4762.1,3.2]
[1755148012722,46.45272509,4762.2,4762.1,3.2]
[1755148013322,46.45272509,4762.2,4762.1,0.001]
[1755148013622,46.45272509,4762.2,4762.1,3.2]
[1755148015301,46.45272509,4762.2,4762.1,0.001]
[1755148015508,46.45272509,4762.2,4761.4,5.03]
[1755148015509,3.0,4762.1,4761.4,5.03]
[1755148015723,30.56082013,4761.5,4761.4,5.03]
[1755148015925,31.57822013,4761.5,4761.4,8.228]
[1755148016224,46.07822013,4761.5,4761.4,8.228]
[1755148016399,46.70759313,4761.5,4761.4,8.228]
[1755148017926,46.70759313,4761.5,4761.1,0.02]
[1755148018103,6.01372725,4761.4,4761.2,3.199]
[1755148018423,6.01372725,4761.4,4761.3,3.199]
[1755148018730,20.61852725,4761.4,4761.1,0.02]
[1755148018926,0.9126,4761.3,4761.1,0.02]
[1755148019101,19.70592725,4761.4,4761.1,0.02]
[1755148019297,3.9126,4761.2,4761.1,0.02]
[1755148019801,3.9126,4761.2,4761.1,3.219]
[1755148020521,3.9126,4761.2,4760.9,0.001]
[1755148020728,0.1048,4761.0,4760.9,0.001]
[1755148021110,15.5174,4761.0,4760.9,0.001]
[1755148021310,18.0747201,4761.0,4760.9,0.001]
[1755148021499,17.6117201,4761.0,4760.9,0.001]
[1755148021702,17.6117201,4761.0,4760.9,3.2]
[1755148022597,17.1621201,4761.0,4760.9,3.2]
[1755148023195,20.1621201,4761.0,4760.9,3.2]
[1755148024014,20.6117201,4761.0,4760.9,3.2]
[1755148024324,20.1621201,4761.0,4760.9,3.2]
[1755148024524,21.0747201,4761.0,4760.9,3.2]
[1755148024730,21.0747201,4761.0,4760.9,3.198]
[1755148024935,21.0747201,4761.0,4760.8,0.001]
[1755148025108,2.10112725,4760.9,4760.8,0.001]
[1755148025430,6.01372725,4760.9,4759.9,0.001]
[1755148025630,30.56082013,4759.5,4759.4,5.035]
[1755148025862,27.56082013,4760.0,4759.4,5.9578]
[1755148026143,17.5,4759.9,4759.5,0.9228]
[1755148026345,14.5,4759.9,4759.5,4.1248]
[1755148026522,0.629454,4759.9,4759.6,0.9228]
[1755148026727,0.629454,4759.9,4759.5,3.202]
[1755148026926,0.629454,4759.9,4759.7,0.9228]
[1755148027127,0.629454,4759.9,4759.5,3.202]
[1755148027330,0.629454,4759.9,4759.6,0.9228]
[1755148027725,0.629454,4759.9,4759.7,0.9228]
[1755148027930,0.629454,4759.9,4759.5,3.202]
[1755148028144,0.629454,4759.9,4759.8,0.9228]
[1755148029050,0.629454,4759.9,4759.8,3.202]
[1755148029351,2.73058125,4759.9,4759.8,3.202]
[1755148029569,2.73058125,4759.9,4759.8,3.203]
[1755148029855,6.64318125,4759.9,4759.4,5.035]
[1755148030025,3.9126,4759.8,4759.5,3.203]
[1755148030351,19.60112725,4759.7,4759.5,3.203]
[1755148030555,3.4496,4759.6,4759.5,3.203]
[1755148030727,0.9126,4759.6,4759.5,3.203]
[1755148031262,17.9496,4759.6,4759.5,3.203]
[1755148031556,17.5,4759.6,4759.5,3.203]
[1755148031760,19.4278621,4759.6,4759.5,3.203]
[1755148032563,46.98868223,4759.6,4759.5,3.203]
[1755148033027,47.61827823,4759.6,4759.5,3.203]
[1755148033934,3.0,4759.5,4759.4,0.001]
[1755148034137,9.63360325,4759.5,4758.3,0.001]
[1755148034371,3.0,4758.8,4758.3,0.001]
[1755148034570,17.5,4758.4,4758.3,0.001]
[1755148034737,20.712,4758.4,4758.3,0.001]
[1755148034940,23.72572725,4758.4,4758.3,0.001]
[1755148035143,3.0,4758.3,4756.5,0.4667]
[1755148035375,25.16572725,4758.4,4756.5,0.4667]
[1755148035376,3.0,4757.4,4756.5,0.4667]
[1755148035759,3.1048,4757.4,4756.5,0.4667]
[1755148036076,17.6048,4757.4,4756.5,0.4667]
[1755148036370,19.70292725,4757.4,4757.2,3.213]
[1755148036776,20.16592725,4757.4,4756.2,0.001]
[1755148037085,0.9126,4757.3,4756.2,0.001]
[1755148037279,0.9126,4757.2,4756.2,0.001]
[1755148037442,20.3404621,4757.2,4756.2,0.001]
[1755148038044,20.4452621,4757.2,4756.2,0.001]
[1755148038380,23.6592621,4757.2,4756.2,0.001]
[1755148038585,20.4452621,4757.2,4756.2,0.001]
[1755148038975,26.18300306,4757.2,4756.2,0.001]
[1755148039176,26.18300306,4757.2,4757.1,2e-08]
[1755148039888,22.96500306,4757.2,4757.1,2e-08]
[1755148040185,26.18300306,4757.2,4757.1,2e-08]
[1755148040553,22.96500306,4757.2,4757.1,2e-08]
[1755148040751,26.18300306,4757.2,4757.1,2e-08]
[1755148041162,22.96500306,4757.2,4757.1,2e-08]
[1755148041364,26.18300306,4757.2,4757.1,2e-08]
[1755148042084,22.96500306,4757.2,4757.1,2e-08]
[1755148042288,20.4452621,4757.2,4757.1,2e-08]
[1755148042666,23.6622621,4757.2,4757.1,2e-08]
[1755148043055,20.4452621,4757.2,4757.1,2e-08]
[1755148043459,23.6622621,4757.2,4757.1,2e-08]
[1755148044694,26.18238811,4757.2,4757.1,2e-08]
[1755148045098,3.0,4755.7,4755.3,0.4717]
[1755148045273,0.1048,4755.4,4755.0,0.4717]
[1755148045470,0.4671,4756.4,4754.0,0.4564]
[1755148045471,30.56082013,4755.1,4754.0,0.4564]
[1755148045802,17.5,4755.0,4754.4,0.4717]
[1755148046011,2.10112725,4754.9,4754.4,0.4717]
[1755148046170,0.1048,4754.5,4754.4,0.4717]
[1755148046571,14.6048,4754.5,4754.4,0.9281]
[1755148047503,0.1048,4754.5,4754.4,0.4717]
[1755148047815,0.1048,4754.5,4754.4,0.4517]
[1755148049076,0.735048,4754.5,4754.4,0.4517]
[1755148049773,0.735048,4754.5,4753.9,0.4717]
[1755148049989,30.66562013,4754.0,4753.9,0.4717]
[1755148050195,3.0,4753.9,4752.6,0.4564]
[1755148050400,3.0,4753.2,4752.7,0.4717]
[1755148050807,0.1056,4752.8,4752.1,0.4917]
[1755148051013,30.66642013,4752.2,4752.1,0.02]
[1755148051195,32.38795576,4752.2,4752.1,0.02]
[1755148051602,32.38795576,4752.2,4752.1,0.4917]
[1755148052808,32.38795576,4752.2,4752.1,0.02]
[1755148052996,32.38795576,4752.2,4752.1,0.4917]
[1755148053202,32.38795576,4752.2,4752.1,0.02]
[1755148058428,32.28235576,4752.2,4752.1,0.4917]
[1755148058722,32.38795576,4752.2,4752.1,0.9481]
[1755148058935,30.66642013,4752.2,4752.1,0.02]
[1755148059635,0.1056,4752.2,4752.1,0.9481]
[1755148060204,27.56082013,4752.6,4752.1,0.9481]
[1755148060506,2.54142467,4755.4,4752.2,4.1581]
[1755148060507,0.630362,4753.8,4752.2,4.1581]
[1755148060833,0.630362,4753.8,4752.3,5.6193]
[1755148060834,0.1048,4752.9,4752.3,5.6193]
[1755148061131,27.56082013,4753.8,4752.4,0.9281]
[1755148061315,27.56082013,4753.8,4752.6,0.1056]
[1755148061316,0.1048,4753.3,4752.6,0.1056]
[1755148061520,0.1048,4753.3,4752.7,0.4717]
[1755148061734,27.56082013,4754.5,4752.7,0.9281]
[1755148061945,0.63022,4755.0,4753.2,0.1048]
[1755148062099,0.63022,4755.0,4753.3,0.9281]
[1755148062299,0.1048,4754.6,4753.9,0.1048]
[1755148062498,0.1048,4754.6,4754.0,3.7037]
[1755148062709,0.1048,4754.6,4754.1,0.4717]
[1755148062921,0.1048,4754.6,4754.1,0.9281]
[1755148063126,0.1048,4754.6,4754.2,0.4564]
[1755148063332,0.1048,4754.6,4754.2,0.9281]
[1755148063536,0.02,4755.4,4754.3,0.4564]
[1755148063724,0.1048,4754.8,4754.4,0.4717]
[1755148063931,0.1048,4754.8,4754.5,5.042]
[1755148064148,0.1048,4754.8,4754.6,0.4717]
[1755148064447,0.1048,4754.8,4754.6,0.9281]
[1755148064619,0.1048,4754.8,4754.7,0.4717]
[1755148065602,3.1048,4754.8,4754.5,5.042]
[1755148065806,4.02945169,4754.8,4754.5,5.042]
[1755148066037,4.02945169,4754.8,4754.6,0.4717]
[1755148066235,3.1048,4754.8,4754.6,0.4717]
[1755148067537,3.1048,4754.8,4754.5,5.042]
[1755148068035,3.1048,4754.8,4754.5,5.5137]
[1755148068534,3.1048,4754.8,4754.5,5.042]
[1755148069334,30.56082013,4754.6,4754.5,5.042]
[1755148069515,33.12904738,4754.6,4754.5,5.042]
[1755148069712,32.66194738,4754.6,4754.5,5.042]
[1755148070104,33.12904738,4754.6,4754.5,5.042]
[1755148071337,3.0,4754.5,4754.0,3.232]
[1755148071535,3.4535,4754.5,4754.0,3.232]
[1755148071748,3.0,4754.3,4754.0,3.232]
[1755148071910,0.1048,4754.1,4754.0,3.232]
[1755148072109,0.5583,4754.1,4754.0,3.232]
[1755148072743,0.1048,4754.1,4754.0,3.232]
[1755148073333,2.10112725,4754.4,4754.0,3.6716]
[1755148073654,0.1048,4754.1,4754.0,3.232]
[1755148074352,0.1048,4754.1,4754.0,4.1669]
[1755148074848,27.56082013,4755.3,4754.0,4.1669]
[1755148075087,0.1048,4754.1,4754.0,3.7273]
[1755148075363,0.1048,4754.2,4754.0,3.7273]
[1755148075534,0.1048,4754.2,4754.1,0.4396]
[1755148075740,0.1048,4754.2,4754.1,0.9349]
[1755148080018,0.1048,4754.2,4754.1,0.4396]
[1755148080824,0.1048,4754.2,4754.1,0.9349]
[1755148081027,0.1048,4754.7,4754.1,0.9349]
[1755148081354,0.1048,4754.7,4754.2,0.4396]
[1755148081923,0.1048,4754.7,4754.3,0.4953]
[1755148082118,0.1048,4754.7,4754.4,0.9349]
[1755148082319,0.1048,4754.7,4754.5,3.6656]
[1755148082531,0.1048,4754.7,4754.6,0.9349]
[1755148082920,0.1048,4755.0,4754.6,0.9349]
[1755148083125,0.1048,4755.0,4754.5,3.226]
[1755148083321,0.1048,4755.0,4754.7,0.9349]
[1755148083950,0.1048,4755.0,4754.7,3.6646]
[1755148086340,0.1048,4755.0,4754.7,4.1599]
[1755148086543,0.1048,4755.5,4754.7,4.2647]
[1755148087568,0.1068,4755.8,4754.7,4.2647]
[1755148088656,0.002,4755.8,4754.7,4.2647]
[1755148088973,0.002,4755.8,4754.7,7.2647]
[1755148092489,0.002,4755.3,4754.7,7.2647]
[1755148092903,0.002,4755.3,4754.7,4.0397]
[1755148093106,0.002,4755.3,4754.7,7.2607]
[1755148095002,0.002,4755.3,4754.7,7.1559]
[1755148095299,0.002,4755.3,4754.7,7.2607]
[1755148096229,0.002,4755.3,4754.7,0.1048]
[1755148096496,0.002,4755.3,4754.7,3.222]
[1755148096682,0.4535,4755.1,4754.7,3.222]
[1755148096885,0.5583,4755.1,4754.7,3.222]
[1755148097284,0.4535,4755.1,4754.7,3.222]
[1755148097464,0.1068,4754.8,4754.7,3.222]
[1755148097670,0.5603,4754.8,4754.7,3.222]
[1755148100299,0.5603,4754.8,4754.7,3.224]
[1755148101179,1.0343,4754.8,4754.7,3.224]
[1755148101778,0.7267446,4754.8,4754.7,3.224]
[1755148105805,0.7267446,4754.8,4753.1,0.5339]
[1755148106019,0.1048,4753.4,4753.2,3.222]
[1755148106411,0.1048,4753.4,4753.2,3.6511]
[1755148106699,0.1048,4753.4,4753.2,3.222]
[1755148108422,0.1048,4753.4,4753.2,3.6511]
[1755148108832,0.1048,4753.4,4753.2,3.222]
[1755148109019,0.1048,4753.4,4753.3,0.4291]
[1755148110634,0.1048,4753.4,4753.2,3.222]
[1755148111624,0.4466,4754.7,4753.3,0.4291]
[1755148111828,0.1048,4753.7,4753.3,0.4291]
[1755148112024,0.1048,4753.7,4753.4,0.4291]
[1755148112223,0.1048,4753.7,4753.5,0.4291]
[1755148112498,0.1048,4753.7,4753.2,3.222]
[1755148112844,0.1048,4753.7,4753.2,3.6511]
[1755148113048,0.1048,4753.7,4753.3,0.4291]
[1755148113609,0.1048,4753.7,4753.4,0.4291]
[1755148113810,0.4466,4754.4,4753.2,3.222]
[1755148113811,0.632167,4754.8,4753.5,0.8992]
[1755148114452,0.002,4754.8,4753.5,0.8992]
[1755148114619,0.1048,4754.1,4753.5,0.8992]
[1755148115054,0.1048,4754.1,4753.5,0.4291]
[1755148115906,0.1048,4754.1,4753.4,0.1048]
[1755148116112,0.1048,4753.8,4753.5,3.219]
[1755148116341,0.1048,4753.8,4753.6,5.04]